{"text_format":"1","workbook":"xlsx","n_sheets":3,"sheets":["Образец","Сводная","Данные"],"not_rendered":{"charts":0,"images":0,"macros":1,"external_links":0,"defined_names":0,"comments":0,"pivot_tables":1},"unopened":[],"bounds":{"document_bytes":16777216,"sheet_cells":100000,"rows_first":2000,"rows_last":500,"rows_between":2000,"halvings":0,"cell_chars":16384,"cell_head_chars":4096},"cells_cut":0,"cells_raw":0,"read":"whole","date_system":"1900"}

{"sheet":"Образец","index":0,"n_rows":101,"n_cols":3,"rows_kept":101,"cut":false,"hidden":false,"merged":[[1,0,1,2],[3,1,5,1],[3,2,5,2]]}
["Оценка валовой прибыли"]
["Период: Январь  2016 г.\n\n\n"]
[]
["Магазин","Количество ","Сумма продаж (грн.)"]
["Склад"]
["Номенклатура"]
["Аудио-видео техника",{"$f":"B8+B11+B67+B95","v":175},{"$f":"C8+C11+C67+C95","v":113618}]
["DVD-плеер",1,670]
["LG",1,670]
["Плеєр LG BP730",1,670]
["Разное",{"$f":"B12+B15+B22+B27+B43+B49+B57","v":158},{"$f":"C12+C15+C22+C27+C43+C49+C57","v":12353}]
["CAM - модуль",3,2520]
["Neotion",3,2520]
["CAM - модуль T2 NEOTION",3,2520]
["Аккумулятор",24,{"$f":"C16+C19","v":2154}]
["Duracell",16,{"$f":"C17+C18","v":944}]
["Акумулятор DURACELL HR6BLN02*10 (AA) 1300 mAh",10,440]
["Акумулятор DURACELL предзаряженные HR6BLN02*10 (AA) 1950 mAh",6,504]
["Sony",14,1210]
["Аккумулятор SONY NHAAB2E R06 2500 1x2 шт.",6,570]
["Аккумулятор   NHAAAB2E R03 1000 mAh 1x2 шт.",8,640]
["Антенна",3,754]
["Kvant-Efir",2,460]
["   Антенна комнатная   ARU-01 активная   \n",2,460]
["X-Digital",1,294]
["Антенна комнатная   DIN 330",1,294]
["Батарейка",{"$f":"B28+B37+B40","v":108},{"$f":"C28+C37+C40","v":1800}]
["Duracell",64,1352]
["Батарейка  D/LR20/MN1300 KPN 02*10",4,220]
["Батарейка  LR03 MN2400 (коробка) 10х4шт.",14,168]
["Батарейка  LR03 MN2400 1x2 шт.",8,144]
["Батарейка  LR03 MN2400 1x18 шт.",18,252]
["Батарейка  LR06 MN1500 KPD 02*20 Turbo 1x2 шт.",8,176]
["Батарейка DURACELL LR06 MN1500 KPD 08*20 Turbo 1x8 шт.",8,192]
["Батарейка DURACELL MN21 BLN 01x10",2,120]
["Батарейка DURACELL С/ LR14/ MN1400 KPN 02*10",2,80]
["Sony",20,256]
["Батарейка  LR 03 Stamina Platinum 1x4 шт.",8,136]
["Батарейка  LR 6 Stamina Plus 1х12 шт.",12,120]
["X-Digital",24,192]
["Батарейка X-DIGITAL Longlife R 3 коробка 1X4 шт.",12,96]
["Батарейка X-DIGITAL LR 06",12,96]
["Зарядное устройство",4,1780]
["Sony",2,920]
["Зарядное устройство SONY COMPACT CHARGER + 2XAA2500 MAH",1,270]
["Зарядное устройство  Super Quick Charger with LCD+4xAA 2700mAh",1,650]
["UFO",2,860]
["Зарядное устройство  USB PB-miniAPP11-2 5200mAh",2,860]
["Кабель, шнур, сетевой фильтр",10,950]
["Bandridge",6,610]
["Кабель  BVL8802 Antenna Cable 2m BLUE",2,220]
["Кабель BANDRIDGE ValueLine VAL3402 Audio",2,120]
["Кабель BANDRIDGE ValueLine VCL7105 Net RJ45 5m",2,270]
["Maxxtro",4,340]
["Сетевой фильтр  PWS06K 10F 3м. 6р черный",2,240]
["Фильтр сетевой Maxxtro 5 розеток, серый, 1,8м. 10А",2,100]
["Настенные крепления ",6,2395]
["Brateck",1,260]
["Кріплення до LCD 15-27 \" LP10-22F",1,260]
["ITECH",3,880]
["Крепления  LCD-303B",1,200]
["Крепления  LCD-328B",1,300]
["Крепления  PLB-44",1,380]
["X-Digital",2,{"$f":"C65+C66","v":1255}]
["Крiплення настiнне X-DIGITAL 13-32\" LCD402 чорний",1,680]
["Крiплення настiнне X-DIGITAL STEEL 22-42\" SF305 Black",1,575]
["Телевизор",{"$f":"B69+B72+B75+B78+B81+B88+B91","v":11},{"$f":"C69+C72+C75+C78+C81+C88+C91","v":96318}]
["Телевизр LCD"]
["19\"",1,3999]
["Sumsung",1,3999]
["LED TV  UE19H4000AKXUA",1,3999]
["22\"",1,3099]
["Honda",1,3099]
["LED TV  HD 225",1,3099]
["24\"",1,3799]
["Ergo",1,3799]
["LED TV  LE24D6",1,3799]
["28\"",1,4329]
["Ergo",1,4329]
["LED TV  LE28D4",1,4329]
["32\"",4,{"$f":"C82+C85","v":32296}]
["LG",2,14498]
["LED TV  32LB563U",1,6999]
["LED TV  32LF560U",1,7499]
["Samsung",2,17798]
["LED TV  UE32FH4003WXUA",1,6799]
["LED TV  UE32J5530AUXUA",1,10999]
["40\"",1,12499]
["Samsung",1,12499]
["LED TV  UE40J5100AUXUA",1,12499]
["42\"",2,{"$f":"C92+C93","v":36297}]
["LG",2,{"$f":"C93+C94","v":25298}]
["LED TV  42LB570V",1,10999]
["LED TV  42LF580V",1,14299]
["Цифровой эфирный приемник",5,4277]
["Romsat",1,899]
["ЦЭП  T2050",1,899]
["Trimax",2,1600]
["Цифр. ефірн.приймач DVB-T2 Trimax TR-2012HD",2,1600]
["Strong",2,1778]
["ЦЭП  DVB-T2 Strong SRT-8501",2,1778]

{"sheet":"Сводная","index":1,"n_rows":109,"n_cols":3,"rows_kept":109,"cut":false,"hidden":false,"merged":[]}
[]
[]
["Аудио-видео техника","Количество","Сумма по полю Сумма"]
["DVD-плеер",1,670]
["(пусто)",1,670]
["(пусто)",1,670]
["LG",1,670]
["Плеєр LG BP730",1,670]
["Разное",164,12353]
["CAM - модуль",3,2520]
["(пусто)",3,2520]
["Neotion",3,2520]
["CAM - модуль T2 NEOTION",3,2520]
["Аккумулятор",30,2154]
["(пусто)",30,2154]
["Duracell",16,944]
["Акумулятор DURACELL HR6BLN02*10 (AA) 1300 mAh",10,440]
["Акумулятор DURACELL предзаряженные HR6BLN02*10 (AA) 1950 mAh",6,504]
["Sony",14,1210]
["Аккумулятор   NHAAAB2E R03 1000 mAh 1x2 шт.",8,640]
["Аккумулятор SONY NHAAB2E R06 2500 1x2 шт.",6,570]
["Антенна",3,754]
["(пусто)",3,754]
["Kvant-Efir",2,460]
["Антенна комнатная   ARU-01 активная   ",2,460]
["X-Digital",1,294]
["Антенна комнатная   DIN 330",1,294]
["Батарейка",108,1800]
["(пусто)",108,1800]
["Duracell",64,1352]
["Батарейка  D/LR20/MN1300 KPN 02*10",4,220]
["Батарейка  LR03 MN2400 (коробка) 10х4шт.",14,168]
["Батарейка  LR03 MN2400 1x18 шт.",18,252]
["Батарейка  LR03 MN2400 1x2 шт.",8,144]
["Батарейка  LR06 MN1500 KPD 02*20 Turbo 1x2 шт.",8,176]
["Батарейка DURACELL LR06 MN1500 KPD 08*20 Turbo 1x8 шт.",8,192]
["Батарейка DURACELL MN21 BLN 01x10",2,120]
["Батарейка DURACELL С/ LR14/ MN1400 KPN 02*10",2,80]
["Sony",20,256]
["Батарейка  LR 03 Stamina Platinum 1x4 шт.",8,136]
["Батарейка  LR 6 Stamina Plus 1х12 шт.",12,120]
["X-Digital",24,192]
["Батарейка X-DIGITAL Longlife R 3 коробка 1X4 шт.",12,96]
["Батарейка X-DIGITAL LR 06",12,96]
["Зарядное устройство",4,1780]
["(пусто)",4,1780]
["Sony",2,920]
["Зарядное устройство  Super Quick Charger with LCD+4xAA 2700mAh",1,650]
["Зарядное устройство SONY COMPACT CHARGER + 2XAA2500 MAH",1,270]
["UFO",2,860]
["Зарядное устройство  USB PB-miniAPP11-2 5200mAh",2,860]
["Кабель, шнур, сетевой фильтр",10,950]
["(пусто)",10,950]
["Bandridge",6,610]
["Кабель  BVL8802 Antenna Cable 2m BLUE",2,220]
["Кабель BANDRIDGE ValueLine VAL3402 Audio",2,120]
["Кабель BANDRIDGE ValueLine VCL7105 Net RJ45 5m",2,270]
["Maxxtro",4,340]
["Сетевой фильтр  PWS06K 10F 3м. 6р черный",2,240]
["Фильтр сетевой Maxxtro 5 розеток, серый, 1,8м. 10А",2,100]
["Настенные крепления ",6,2395]
["(пусто)",6,2395]
["Brateck",1,260]
["Кріплення до LCD 15-27 \" LP10-22F",1,260]
["ITECH",3,880]
["Крепления  LCD-303B",1,200]
["Крепления  LCD-328B",1,300]
["Крепления  PLB-44",1,380]
["X-Digital",2,1255]
["Крiплення настiнне X-DIGITAL 13-32\" LCD402 чорний",1,680]
["Крiплення настiнне X-DIGITAL STEEL 22-42\" SF305 Black",1,575]
["Телевизор",11,85319]
["Телевизр LCD",11,85319]
["19\"",1,3999]
["Sumsung",1,3999]
["LED TV  UE19H4000AKXUA",1,3999]
["22\"",1,3099]
["Honda",1,3099]
["LED TV  HD 225",1,3099]
["24\"",1,3799]
["Ergo",1,3799]
["LED TV  LE24D6",1,3799]
["28\"",1,4329]
["Ergo",1,4329]
["LED TV  LE28D4",1,4329]
["32\"",4,32296]
["LG",2,14498]
["LED TV  32LB563U",1,6999]
["LED TV  32LF560U",1,7499]
["Samsung",2,17798]
["LED TV  UE32FH4003WXUA",1,6799]
["LED TV  UE32J5530AUXUA",1,10999]
["40\"",1,12499]
["Samsung",1,12499]
["LED TV  UE40J5100AUXUA",1,12499]
["42\"",2,25298]
["LG",2,25298]
["LED TV  42LB570V",1,10999]
["LED TV  42LF580V",1,14299]
["Цифровой эфирный приемник",5,4277]
["(пусто)",5,4277]
["(пусто)",5,4277]
["Romsat",1,899]
["ЦЭП  T2050",1,899]
["Strong",2,1778]
["ЦЭП  DVB-T2 Strong SRT-8501",2,1778]
["Trimax",2,1600]
["Цифр. ефірн.приймач DVB-T2 Trimax TR-2012HD",2,1600]
["Общий итог",181,102619]

{"sheet":"Данные","index":2,"n_rows":467,"n_cols":8,"rows_kept":467,"cut":false,"hidden":false,"merged":[]}
["Группа","Подгруппа","Дюйм","Бренд","Товар","Цена","Кол-во","Сумма"]
["DVD-плеер",null,null,"LG","Плеєр LG BP730",670,1,{"$f":"G2*F2","v":670}]
["Разное","CAM - модуль",null,"Neotion","CAM - модуль T2 NEOTION",840,3,2520]
["Разное","Аккумулятор",null,"Duracell","Акумулятор DURACELL HR6BLN02*10 (AA) 1300 mAh",44,10,440]
["Разное","Аккумулятор",null,"Duracell","Акумулятор DURACELL предзаряженные HR6BLN02*10 (AA) 1950 mAh",84,6,504]
["Разное","Аккумулятор",null,"Sony","Аккумулятор SONY NHAAB2E R06 2500 1x2 шт.",95,6,570]
["Разное","Аккумулятор",null,"Sony","Аккумулятор   NHAAAB2E R03 1000 mAh 1x2 шт.",80,8,640]
["Разное","Антенна",null,"Kvant-Efir","Антенна комнатная   ARU-01 активная   ",230,2,460]
["Разное","Антенна",null,"X-Digital","Антенна комнатная   DIN 330",294,1,294]
["Разное","Батарейка",null,"Duracell","Батарейка  D/LR20/MN1300 KPN 02*10",55,4,220]
["Разное","Батарейка",null,"Duracell","Батарейка  LR03 MN2400 (коробка) 10х4шт.",12,14,168]
["Разное","Батарейка",null,"Duracell","Батарейка  LR03 MN2400 1x2 шт.",18,8,144]
["Разное","Батарейка",null,"Duracell","Батарейка  LR03 MN2400 1x18 шт.",14,18,252]
["Разное","Батарейка",null,"Duracell","Батарейка  LR06 MN1500 KPD 02*20 Turbo 1x2 шт.",22,8,176]
["Разное","Батарейка",null,"Duracell","Батарейка DURACELL LR06 MN1500 KPD 08*20 Turbo 1x8 шт.",24,8,192]
["Разное","Батарейка",null,"Duracell","Батарейка DURACELL MN21 BLN 01x10",60,2,120]
["Разное","Батарейка",null,"Duracell","Батарейка DURACELL С/ LR14/ MN1400 KPN 02*10",40,2,80]
["Разное","Батарейка",null,"Sony","Батарейка  LR 03 Stamina Platinum 1x4 шт.",17,8,136]
["Разное","Батарейка",null,"Sony","Батарейка  LR 6 Stamina Plus 1х12 шт.",10,12,120]
["Разное","Батарейка",null,"X-Digital","Батарейка X-DIGITAL Longlife R 3 коробка 1X4 шт.",8,12,96]
["Разное","Батарейка",null,"X-Digital","Батарейка X-DIGITAL LR 06",8,12,96]
["Разное","Зарядное устройство",null,"Sony","Зарядное устройство SONY COMPACT CHARGER + 2XAA2500 MAH",270,1,270]
["Разное","Зарядное устройство",null,"Sony","Зарядное устройство  Super Quick Charger with LCD+4xAA 2700mAh",650,1,650]
["Разное","Зарядное устройство",null,"UFO","Зарядное устройство  USB PB-miniAPP11-2 5200mAh",430,2,860]
["Разное","Кабель, шнур, сетевой фильтр",null,"Bandridge","Кабель  BVL8802 Antenna Cable 2m BLUE",110,2,220]
["Разное","Кабель, шнур, сетевой фильтр",null,"Bandridge","Кабель BANDRIDGE ValueLine VAL3402 Audio",60,2,120]
["Разное","Кабель, шнур, сетевой фильтр",null,"Bandridge","Кабель BANDRIDGE ValueLine VCL7105 Net RJ45 5m",135,2,270]
["Разное","Кабель, шнур, сетевой фильтр",null,"Maxxtro","Сетевой фильтр  PWS06K 10F 3м. 6р черный",120,2,240]
["Разное","Кабель, шнур, сетевой фильтр",null,"Maxxtro","Фильтр сетевой Maxxtro 5 розеток, серый, 1,8м. 10А",50,2,100]
["Разное","Настенные крепления ",null,"Brateck","Кріплення до LCD 15-27 \" LP10-22F",260,1,260]
["Разное","Настенные крепления ",null,"ITECH","Крепления  LCD-303B",200,1,200]
["Разное","Настенные крепления ",null,"ITECH","Крепления  LCD-328B",300,1,300]
["Разное","Настенные крепления ",null,"ITECH","Крепления  PLB-44",380,1,380]
["Разное","Настенные крепления ",null,"X-Digital","Крiплення настiнне X-DIGITAL 13-32\" LCD402 чорний",680,1,680]
["Разное","Настенные крепления ",null,"X-Digital","Крiплення настiнне X-DIGITAL STEEL 22-42\" SF305 Black",575,1,575]
["Телевизор","Телевизр LCD","19\"","Sumsung","LED TV  UE19H4000AKXUA",3999,1,3999]
["Телевизор","Телевизр LCD","22\"","Honda","LED TV  HD 225",3099,1,3099]
["Телевизор","Телевизр LCD","24\"","Ergo","LED TV  LE24D6",3799,1,3799]
["Телевизор","Телевизр LCD","28\"","Ergo","LED TV  LE28D4",4329,1,4329]
["Телевизор","Телевизр LCD","32\"","LG","LED TV  32LB563U",6999,1,6999]
["Телевизор","Телевизр LCD","32\"","LG","LED TV  32LF560U",7499,1,7499]
["Телевизор","Телевизр LCD","32\"","Samsung","LED TV  UE32FH4003WXUA",6799,1,6799]
["Телевизор","Телевизр LCD","32\"","Samsung","LED TV  UE32J5530AUXUA",10999,1,10999]
["Телевизор","Телевизр LCD","40\"","Samsung","LED TV  UE40J5100AUXUA",12499,1,12499]
["Телевизор","Телевизр LCD","42\"","LG","LED TV  42LB570V",10999,1,10999]
["Телевизор","Телевизр LCD","42\"","LG","LED TV  42LF580V",14299,1,14299]
["Цифровой эфирный приемник",null,null,"Romsat","ЦЭП  T2050",899,1,899]
["Цифровой эфирный приемник",null,null,"Trimax","Цифр. ефірн.приймач DVB-T2 Trimax TR-2012HD",800,2,1600]
["Цифровой эфирный приемник",null,null,"Strong","ЦЭП  DVB-T2 Strong SRT-8501",889,2,1778]
[null,null,null,null,null,null,null,0]
[null,null,null,null,null,null,null,0]
[null,null,null,null,null,null,null,0]
[null,null,null,null,null,null,null,0]
[null,null,null,null,null,null,null,0]
[null,null,null,null,null,null,null,0]
[null,null,null,null,null,null,null,0]
[null,null,null,null,null,null,null,0]
[null,null,null,null,null,null,null,0]
[null,null,null,null,null,null,null,0]
[null,null,null,null,null,null,null,0]
[null,null,null,null,null,null,null,0]
[null,null,null,null,null,null,null,0]
[null,null,null,null,null,null,null,0]
[null,null,null,null,null,null,null,0]
[null,null,null,null,null,null,null,0]
[null,null,null,null,null,null,null,{"$f":"G66*F66","v":0}]
[null,null,null,null,null,null,null,0]
[null,null,null,null,null,null,null,0]
[null,null,null,null,null,null,null,0]
[null,null,null,null,null,null,null,0]
[null,null,null,null,null,null,null,0]
[null,null,null,null,null,null,null,0]
[null,null,null,null,null,null,null,0]
[null,null,null,null,null,null,null,0]
[null,null,null,null,null,null,null,0]
[null,null,null,null,null,null,null,0]
[null,null,null,null,null,null,null,0]
[null,null,null,null,null,null,null,0]
[null,null,null,null,null,null,null,0]
[null,null,null,null,null,null,null,0]
[null,null,null,null,null,null,null,0]
[null,null,null,null,null,null,null,0]
[null,null,null,null,null,null,null,0]
[null,null,null,null,null,null,null,0]
[null,null,null,null,null,null,null,0]
[null,null,null,null,null,null,null,0]
[null,null,null,null,null,null,null,0]
[null,null,null,null,null,null,null,0]
[null,null,null,null,null,null,null,0]
[null,null,null,null,null,null,null,0]
[null,null,null,null,null,null,null,0]
[null,null,null,null,null,null,null,0]
[null,null,null,null,null,null,null,0]
[null,null,null,null,null,null,null,0]
[null,null,null,null,null,null,null,0]
[null,null,null,null,null,null,null,0]
[null,null,null,null,null,null,null,0]
[null,null,null,null,null,null,null,0]
[null,null,null,null,null,null,null,0]
[null,null,null,null,null,null,null,0]
[null,null,null,null,null,null,null,0]
[null,null,null,null,null,null,null,0]
[null,null,null,null,null,null,null,0]
[null,null,null,null,null,null,null,0]
[null,null,null,null,null,null,null,0]
[null,null,null,null,null,null,null,0]
[null,null,null,null,null,null,null,0]
[null,null,null,null,null,null,null,0]
[null,null,null,null,null,null,null,0]
[null,null,null,null,null,null,null,0]
[null,null,null,null,null,null,null,0]
[null,null,null,null,null,null,null,0]
[null,null,null,null,null,null,null,0]
[null,null,null,null,null,null,null,0]
[null,null,null,null,null,null,null,0]
[null,null,null,null,null,null,null,0]
[null,null,null,null,null,null,null,0]
[null,null,null,null,null,null,null,0]
[null,null,null,null,null,null,null,0]
[null,null,null,null,null,null,null,0]
[null,null,null,null,null,null,null,0]
[null,null,null,null,null,null,null,0]
[null,null,null,null,null,null,null,0]
[null,null,null,null,null,null,null,0]
[null,null,null,null,null,null,null,0]
[null,null,null,null,null,null,null,0]
[null,null,null,null,null,null,null,0]
[null,null,null,null,null,null,null,0]
[null,null,null,null,null,null,null,0]
[null,null,null,null,null,null,null,{"$f":"G130*F130","v":0}]
[null,null,null,null,null,null,null,0]
[null,null,null,null,null,null,null,0]
[null,null,null,null,null,null,null,0]
[null,null,null,null,null,null,null,0]
[null,null,null,null,null,null,null,0]
[null,null,null,null,null,null,null,0]
[null,null,null,null,null,null,null,0]
[null,null,null,null,null,null,null,0]
[null,null,null,null,null,null,null,0]
[null,null,null,null,null,null,null,0]
[null,null,null,null,null,null,null,0]
[null,null,null,null,null,null,null,0]
[null,null,null,null,null,null,null,0]
[null,null,null,null,null,null,null,0]
[null,null,null,null,null,null,null,0]
[null,null,null,null,null,null,null,0]
[null,null,null,null,null,null,null,0]
[null,null,null,null,null,null,null,0]
[null,null,null,null,null,null,null,0]
[null,null,null,null,null,null,null,0]
[null,null,null,null,null,null,null,0]
[null,null,null,null,null,null,null,0]
[null,null,null,null,null,null,null,0]
[null,null,null,null,null,null,null,0]
[null,null,null,null,null,null,null,0]
[null,null,null,null,null,null,null,0]
[null,null,null,null,null,null,null,0]
[null,null,null,null,null,null,null,0]
[null,null,null,null,null,null,null,0]
[null,null,null,null,null,null,null,0]
[null,null,null,null,null,null,null,0]
[null,null,null,null,null,null,null,0]
[null,null,null,null,null,null,null,0]
[null,null,null,null,null,null,null,0]
[null,null,null,null,null,null,null,0]
[null,null,null,null,null,null,null,0]
[null,null,null,null,null,null,null,0]
[null,null,null,null,null,null,null,0]
[null,null,null,null,null,null,null,0]
[null,null,null,null,null,null,null,0]
[null,null,null,null,null,null,null,0]
[null,null,null,null,null,null,null,0]
[null,null,null,null,null,null,null,0]
[null,null,null,null,null,null,null,0]
[null,null,null,null,null,null,null,0]
[null,null,null,null,null,null,null,0]
[null,null,null,null,null,null,null,0]
[null,null,null,null,null,null,null,0]
[null,null,null,null,null,null,null,0]
[null,null,null,null,null,null,null,0]
[null,null,null,null,null,null,null,0]
[null,null,null,null,null,null,null,0]
[null,null,null,null,null,null,null,0]
[null,null,null,null,null,null,null,0]
[null,null,null,null,null,null,null,0]
[null,null,null,null,null,null,null,0]
[null,null,null,null,null,null,null,0]
[null,null,null,null,null,null,null,0]
[null,null,null,null,null,null,null,0]
[null,null,null,null,null,null,null,0]
[null,null,null,null,null,null,null,0]
[null,null,null,null,null,null,null,0]
[null,null,null,null,null,null,null,0]
[null,null,null,null,null,null,null,{"$f":"G194*F194","v":0}]
[null,null,null,null,null,null,null,0]
[null,null,null,null,null,null,null,0]
[null,null,null,null,null,null,null,0]
[null,null,null,null,null,null,null,0]
[null,null,null,null,null,null,null,0]
[null,null,null,null,null,null,null,0]
[null,null,null,null,null,null,null,0]
[null,null,null,null,null,null,null,0]
[null,null,null,null,null,null,null,0]
[null,null,null,null,null,null,null,0]
[null,null,null,null,null,null,null,0]
[null,null,null,null,null,null,null,0]
[null,null,null,null,null,null,null,0]
[null,null,null,null,null,null,null,0]
[null,null,null,null,null,null,null,0]
[null,null,null,null,null,null,null,0]
[null,null,null,null,null,null,null,0]
[null,null,null,null,null,null,null,0]
[null,null,null,null,null,null,null,0]
[null,null,null,null,null,null,null,0]
[null,null,null,null,null,null,null,0]
[null,null,null,null,null,null,null,0]
[null,null,null,null,null,null,null,0]
[null,null,null,null,null,null,null,0]
[null,null,null,null,null,null,null,0]
[null,null,null,null,null,null,null,0]
[null,null,null,null,null,null,null,0]
[null,null,null,null,null,null,null,0]
[null,null,null,null,null,null,null,0]
[null,null,null,null,null,null,null,0]
[null,null,null,null,null,null,null,0]
[null,null,null,null,null,null,null,0]
[null,null,null,null,null,null,null,0]
[null,null,null,null,null,null,null,0]
[null,null,null,null,null,null,null,0]
[null,null,null,null,null,null,null,0]
[null,null,null,null,null,null,null,0]
[null,null,null,null,null,null,null,0]
[null,null,null,null,null,null,null,0]
[null,null,null,null,null,null,null,0]
[null,null,null,null,null,null,null,0]
[null,null,null,null,null,null,null,0]
[null,null,null,null,null,null,null,0]
[null,null,null,null,null,null,null,0]
[null,null,null,null,null,null,null,0]
[null,null,null,null,null,null,null,0]
[null,null,null,null,null,null,null,0]
[null,null,null,null,null,null,null,0]
[null,null,null,null,null,null,null,0]
[null,null,null,null,null,null,null,0]
[null,null,null,null,null,null,null,0]
[null,null,null,null,null,null,null,0]
[null,null,null,null,null,null,null,0]
[null,null,null,null,null,null,null,0]
[null,null,null,null,null,null,null,0]
[null,null,null,null,null,null,null,0]
[null,null,null,null,null,null,null,0]
[null,null,null,null,null,null,null,0]
[null,null,null,null,null,null,null,0]
[null,null,null,null,null,null,null,0]
[null,null,null,null,null,null,null,0]
[null,null,null,null,null,null,null,0]
[null,null,null,null,null,null,null,0]
[null,null,null,null,null,null,null,{"$f":"G258*F258","v":0}]
[null,null,null,null,null,null,null,0]
[null,null,null,null,null,null,null,0]
[null,null,null,null,null,null,null,0]
[null,null,null,null,null,null,null,0]
[null,null,null,null,null,null,null,0]
[null,null,null,null,null,null,null,0]
[null,null,null,null,null,null,null,0]
[null,null,null,null,null,null,null,0]
[null,null,null,null,null,null,null,0]
[null,null,null,null,null,null,null,0]
[null,null,null,null,null,null,null,0]
[null,null,null,null,null,null,null,0]
[null,null,null,null,null,null,null,0]
[null,null,null,null,null,null,null,0]
[null,null,null,null,null,null,null,0]
[null,null,null,null,null,null,null,0]
[null,null,null,null,null,null,null,0]
[null,null,null,null,null,null,null,0]
[null,null,null,null,null,null,null,0]
[null,null,null,null,null,null,null,0]
[null,null,null,null,null,null,null,0]
[null,null,null,null,null,null,null,0]
[null,null,null,null,null,null,null,0]
[null,null,null,null,null,null,null,0]
[null,null,null,null,null,null,null,0]
[null,null,null,null,null,null,null,0]
[null,null,null,null,null,null,null,0]
[null,null,null,null,null,null,null,0]
[null,null,null,null,null,null,null,0]
[null,null,null,null,null,null,null,0]
[null,null,null,null,null,null,null,0]
[null,null,null,null,null,null,null,0]
[null,null,null,null,null,null,null,0]
[null,null,null,null,null,null,null,0]
[null,null,null,null,null,null,null,0]
[null,null,null,null,null,null,null,0]
[null,null,null,null,null,null,null,0]
[null,null,null,null,null,null,null,0]
[null,null,null,null,null,null,null,0]
[null,null,null,null,null,null,null,0]
[null,null,null,null,null,null,null,0]
[null,null,null,null,null,null,null,0]
[null,null,null,null,null,null,null,0]
[null,null,null,null,null,null,null,0]
[null,null,null,null,null,null,null,0]
[null,null,null,null,null,null,null,0]
[null,null,null,null,null,null,null,0]
[null,null,null,null,null,null,null,0]
[null,null,null,null,null,null,null,0]
[null,null,null,null,null,null,null,0]
[null,null,null,null,null,null,null,0]
[null,null,null,null,null,null,null,0]
[null,null,null,null,null,null,null,0]
[null,null,null,null,null,null,null,0]
[null,null,null,null,null,null,null,0]
[null,null,null,null,null,null,null,0]
[null,null,null,null,null,null,null,0]
[null,null,null,null,null,null,null,0]
[null,null,null,null,null,null,null,0]
[null,null,null,null,null,null,null,0]
[null,null,null,null,null,null,null,0]
[null,null,null,null,null,null,null,0]
[null,null,null,null,null,null,null,0]
[null,null,null,null,null,null,null,{"$f":"G322*F322","v":0}]
[null,null,null,null,null,null,null,0]
[null,null,null,null,null,null,null,0]
[null,null,null,null,null,null,null,0]
[null,null,null,null,null,null,null,0]
[null,null,null,null,null,null,null,0]
[null,null,null,null,null,null,null,0]
[null,null,null,null,null,null,null,0]
[null,null,null,null,null,null,null,0]
[null,null,null,null,null,null,null,0]
[null,null,null,null,null,null,null,0]
[null,null,null,null,null,null,null,0]
[null,null,null,null,null,null,null,0]
[null,null,null,null,null,null,null,0]
[null,null,null,null,null,null,null,0]
[null,null,null,null,null,null,null,0]
[null,null,null,null,null,null,null,0]
[null,null,null,null,null,null,null,0]
[null,null,null,null,null,null,null,0]
[null,null,null,null,null,null,null,0]
[null,null,null,null,null,null,null,0]
[null,null,null,null,null,null,null,0]
[null,null,null,null,null,null,null,0]
[null,null,null,null,null,null,null,0]
[null,null,null,null,null,null,null,0]
[null,null,null,null,null,null,null,0]
[null,null,null,null,null,null,null,0]
[null,null,null,null,null,null,null,0]
[null,null,null,null,null,null,null,0]
[null,null,null,null,null,null,null,0]
[null,null,null,null,null,null,null,0]
[null,null,null,null,null,null,null,0]
[null,null,null,null,null,null,null,0]
[null,null,null,null,null,null,null,0]
[null,null,null,null,null,null,null,0]
[null,null,null,null,null,null,null,0]
[null,null,null,null,null,null,null,0]
[null,null,null,null,null,null,null,0]
[null,null,null,null,null,null,null,0]
[null,null,null,null,null,null,null,0]
[null,null,null,null,null,null,null,0]
[null,null,null,null,null,null,null,0]
[null,null,null,null,null,null,null,0]
[null,null,null,null,null,null,null,0]
[null,null,null,null,null,null,null,0]
[null,null,null,null,null,null,null,0]
[null,null,null,null,null,null,null,0]
[null,null,null,null,null,null,null,0]
[null,null,null,null,null,null,null,0]
[null,null,null,null,null,null,null,0]
[null,null,null,null,null,null,null,0]
[null,null,null,null,null,null,null,0]
[null,null,null,null,null,null,null,0]
[null,null,null,null,null,null,null,0]
[null,null,null,null,null,null,null,0]
[null,null,null,null,null,null,null,0]
[null,null,null,null,null,null,null,0]
[null,null,null,null,null,null,null,0]
[null,null,null,null,null,null,null,0]
[null,null,null,null,null,null,null,0]
[null,null,null,null,null,null,null,0]
[null,null,null,null,null,null,null,0]
[null,null,null,null,null,null,null,0]
[null,null,null,null,null,null,null,0]
[null,null,null,null,null,null,null,{"$f":"G386*F386","v":0}]
[null,null,null,null,null,null,null,0]
[null,null,null,null,null,null,null,0]
[null,null,null,null,null,null,null,0]
[null,null,null,null,null,null,null,0]
[null,null,null,null,null,null,null,0]
[null,null,null,null,null,null,null,0]
[null,null,null,null,null,null,null,0]
[null,null,null,null,null,null,null,0]
[null,null,null,null,null,null,null,0]
[null,null,null,null,null,null,null,0]
[null,null,null,null,null,null,null,0]
[null,null,null,null,null,null,null,0]
[null,null,null,null,null,null,null,0]
[null,null,null,null,null,null,null,0]
[null,null,null,null,null,null,null,0]
[null,null,null,null,null,null,null,0]
[null,null,null,null,null,null,null,0]
[null,null,null,null,null,null,null,0]
[null,null,null,null,null,null,null,0]
[null,null,null,null,null,null,null,0]
[null,null,null,null,null,null,null,0]
[null,null,null,null,null,null,null,0]
[null,null,null,null,null,null,null,0]
[null,null,null,null,null,null,null,0]
[null,null,null,null,null,null,null,0]
[null,null,null,null,null,null,null,0]
[null,null,null,null,null,null,null,0]
[null,null,null,null,null,null,null,0]
[null,null,null,null,null,null,null,0]
[null,null,null,null,null,null,null,0]
[null,null,null,null,null,null,null,0]
[null,null,null,null,null,null,null,0]
[null,null,null,null,null,null,null,0]
[null,null,null,null,null,null,null,0]
[null,null,null,null,null,null,null,0]
[null,null,null,null,null,null,null,0]
[null,null,null,null,null,null,null,0]
[null,null,null,null,null,null,null,0]
[null,null,null,null,null,null,null,0]
[null,null,null,null,null,null,null,0]
[null,null,null,null,null,null,null,0]
[null,null,null,null,null,null,null,0]
[null,null,null,null,null,null,null,0]
[null,null,null,null,null,null,null,0]
[null,null,null,null,null,null,null,0]
[null,null,null,null,null,null,null,0]
[null,null,null,null,null,null,null,0]
[null,null,null,null,null,null,null,0]
[null,null,null,null,null,null,null,0]
[null,null,null,null,null,null,null,0]
[null,null,null,null,null,null,null,0]
[null,null,null,null,null,null,null,0]
[null,null,null,null,null,null,null,0]
[null,null,null,null,null,null,null,0]
[null,null,null,null,null,null,null,0]
[null,null,null,null,null,null,null,0]
[null,null,null,null,null,null,null,0]
[null,null,null,null,null,null,null,0]
[null,null,null,null,null,null,null,0]
[null,null,null,null,null,null,null,0]
[null,null,null,null,null,null,null,0]
[null,null,null,null,null,null,null,0]
[null,null,null,null,null,null,null,0]
[null,null,null,null,null,null,null,{"$f":"G450*F450","v":0}]
[null,null,null,null,null,null,null,0]
[null,null,null,null,null,null,null,0]
[null,null,null,null,null,null,null,0]
[null,null,null,null,null,null,null,0]
[null,null,null,null,null,null,null,0]
[null,null,null,null,null,null,null,0]
[null,null,null,null,null,null,null,0]
[null,null,null,null,null,null,null,0]
[null,null,null,null,null,null,null,0]
[null,null,null,null,null,null,null,0]
[null,null,null,null,null,null,null,0]
[null,null,null,null,null,null,null,0]
[null,null,null,null,null,null,null,0]
[null,null,null,null,null,null,null,0]
[null,null,null,null,null,null,null,0]
[null,null,null,null,null,null,null,0]
[null,null,null,null,null,null,null,0]